{"text_format":"1","workbook":"xlsx","n_sheets":3,"sheets":["SRA","Version","Calc"],"not_rendered":{"charts":4,"images":0,"macros":1,"external_links":0,"defined_names":43,"comments":0,"pivot_tables":0},"unopened":[],"bounds":{"document_bytes":16777216,"sheet_cells":100000,"rows_first":2000,"rows_last":500,"rows_between":2000,"halvings":0,"cell_chars":16384,"cell_head_chars":4096},"cells_cut":0,"cells_raw":0,"read":"whole","date_system":"1900"}

{"sheet":"SRA","index":0,"n_rows":38,"n_cols":14,"rows_kept":38,"cut":false,"hidden":false,"merged":[[32,2,32,5],[33,2,33,5],[1,1,1,7],[1,9,1,11],[10,1,10,7],[19,2,19,3],[31,2,31,5]]}
[null,null,null,null,null,null,null,null,null,null,null,null,null,"SRA6x6 16Aug2021"]
[null,"Standard",null,null,null,null,null,null,null,"Blanks"]
[null,"Doses standard"]
[null,"Responses standard"]
[]
[]
[]
[]
[]
[]
[null,"Test"]
[null,"Doses test"]
[null,"Responses test"]
[]
[]
[]
[]
[]
[]
[null,"Standard name"]
[null,"Potency",1]
[]
[null,"Predilution sample",null,"Potency",-0.95,0.95]
[null,1,null,{"$f":"$C$21*B24*Calc!P59","v":{"$error":"#DIV/0!"}},{"$f":"$C$21*B24*Calc!P61","v":{"$error":"#DIV/0!"}},{"$f":"$C$21*B24*Calc!P60","v":{"$error":"#DIV/0!"}}]
[]
[null,null,"F-calc","F-critical"]
[null,"Blanks",{"$f":"+Calc!S77","v":{"$error":"#DIV/0!"}},{"$f":"+Calc!T77","v":{"$error":"#NUM!"}},{"$f":"IF(C27>D27,\"Error\",\"Ok\")","v":{"$error":"#DIV/0!"}}]
[null,"Intersection",{"$f":"+Calc!S78","v":{"$error":"#DIV/0!"}},{"$f":"+Calc!T78","v":{"$error":"#NUM!"}},{"$f":"IF(C28>D28,\"Error\",\"Ok\")","v":{"$error":"#DIV/0!"}}]
[null,"Curvature",{"$f":"+Calc!S79","v":{"$error":"#DIV/0!"}},{"$f":"+Calc!T79","v":{"$error":"#NUM!"}},{"$f":"IF(C29>D29,\"Error\",\"Ok\")","v":{"$error":"#DIV/0!"}}]
[]
[null,"Date:"]
[null,"Sample name:"]
[]
[]
[]
[]
[]
[null,"Italic and/or Bold = omit point, Press F2 and press Enter to recalculate the sheet"]

{"sheet":"Version","index":1,"n_rows":36,"n_cols":15,"rows_kept":36,"cut":false,"hidden":false,"merged":[[1,3,1,9],[1,11,1,13],[8,3,8,9],[15,4,15,5]]}
["Version SRA 28 feb 2009","Ed Nieuwenhuys, 2009",null,null,null,null,null,null,null,null,null,null,null,null,"SRA6x6 16aug2021"]
["Worksheet adapted and checked against routinely used calculation method",null,null,"Standard",null,null,null,null,null,null,null,"Blanks"]
["Checked against original source: ",null,null,"Doses standard",0.05,0.1,0.15,0.2,0.25]
["David J.Finney pag 150",null,null,"Responses standard",3.5,5,6.2,8,9.4,null,null,"Responses blanks",null,1.5]
["Statistical Method in biological assay",null,null,null,3.2,4.7,6.1,7.7,9.5,null,null,null,null,1.4]
["Third edition "]
[]
["SRA 15 mar 2009"]
["A bold or italic entry will not be used in calculations",null,null,"Test"]
["Macro running needs to be enabled in this version",null,null,"Doses test",1,1.5,2]
[null,null,null,"Responses test",4.9000000000000004,6.3,7.7]
["SRA 31mrt",null,null,null,4.8,6.5,7.7]
["False reference in formulae corrected"]
[]
["SRA6x6 16 Aug 2021"]
["Added two responses rows resulting in major changes in formulaes",null,null,"Standard name"]
["Redesigned Graph",null,null,"Potency",1]
["Adjusted Visual basic coding"]
[null,null,null,"Predilution sample",null,"Potency",-0.95,0.95]
[null,null,null,5000,null,495.82268802566045,478.72549218394539,513.10179112947208]
[null,null,null,null,null,null,null,null,null,"Check data for slope ratio assay"]
[null,null,null,null,"F-calc","F-critical"]
[null,null,null,"Blanks",7.4411653290505173,5.1173572046536719,"Error"]
[null,null,null,"Intersection",1.2857142857147361,5.1173572046536719,"Ok"]
[null,null,null,"Curvature",1.4,3.6330902730696835,"Ok"]
[]
[null,null,null,"Date:"]
[null,null,null,"Sample name:"]
[]
[]
[]
[]
[null,null,null,"Example from"]
[null,null,null,"David J.Finney pag 150"]
[null,null,null,"Statistical Method in biological assay"]
[null,null,null,"Third edition "]

{"sheet":"Calc","index":2,"n_rows":100,"n_cols":28,"rows_kept":100,"cut":false,"hidden":true,"merged":[[22,21,22,27],[1,1,1,7],[1,9,1,11],[10,1,10,7],[22,13,22,19]]}
[]
[null,"Standard",null,null,null,null,null,null,null,"Blanks",null,null,null,null,"Macros and not enabled !! --> Set security \"Low\" to enable macros to run "]
[null,"Doses standard"]
[null,"Responses standard"]
[]
[]
[]
[]
[]
[]
[null,"Test"]
[null,"Doses test"]
[null,"Responses test"]
[]
[]
[]
[]
[]
[]
[]
[]
[]
[null,null,null,null,null,null,null,null,null,null,null,null,null,"Test",null,null,null,null,null,null,null,"Standard"]
[null,null,null,null,null,null,null,null,null,null,null,null,null,"Doses ",{"$f":"IF(Calc!C12,TRUE(),FALSE())","v":false},{"$f":"IF(Calc!D12,TRUE(),FALSE())","v":false},{"$f":"IF(Calc!E12,TRUE(),FALSE())","v":false},{"$f":"IF(Calc!F12,TRUE(),FALSE())","v":false},{"$f":"IF(Calc!G12,TRUE(),FALSE())","v":false},{"$f":"IF(Calc!H12,TRUE(),FALSE())","v":false},null,"Doses ",{"$f":"IF(Calc!C3,TRUE(),FALSE())","v":false},{"$f":"IF(Calc!D3,TRUE(),FALSE())","v":false},{"$f":"IF(Calc!E3,TRUE(),FALSE())","v":false},{"$f":"IF(Calc!F3,TRUE(),FALSE())","v":false},{"$f":"IF(Calc!G3,TRUE(),FALSE())","v":false},{"$f":"IF(Calc!H3,TRUE(),FALSE())","v":false}]
[null,null,null,null,null,null,null,null,null,null,null,null,null,"Responses ",{"$f":"IF(Calc!C13=\"\",FALSE(),TRUE())","v":false},{"$f":"IF(Calc!D13=\"\",FALSE(),TRUE())","v":false},{"$f":"IF(Calc!E13=\"\",FALSE(),TRUE())","v":false},{"$f":"IF(Calc!F13=\"\",FALSE(),TRUE())","v":false},{"$f":"IF(Calc!G13=\"\",FALSE(),TRUE())","v":false},{"$f":"IF(Calc!H13=\"\",FALSE(),TRUE())","v":false},null,"Responses ",{"$f":"IF(Calc!C4=\"\",FALSE(),TRUE())","v":false},{"$f":"IF(Calc!D4=\"\",FALSE(),TRUE())","v":false},{"$f":"IF(Calc!E4=\"\",FALSE(),TRUE())","v":false},{"$f":"IF(Calc!F4=\"\",FALSE(),TRUE())","v":false},{"$f":"IF(Calc!G4=\"\",FALSE(),TRUE())","v":false},{"$f":"IF(Calc!H4=\"\",FALSE(),TRUE())","v":false}]
[null,null,null,null,null,null,null,null,null,null,null,null,null,null,{"$f":"IF(Calc!C14=\"\",FALSE(),TRUE())","v":false},{"$f":"IF(Calc!D14=\"\",FALSE(),TRUE())","v":false},{"$f":"IF(Calc!E14=\"\",FALSE(),TRUE())","v":false},{"$f":"IF(Calc!F14=\"\",FALSE(),TRUE())","v":false},{"$f":"IF(Calc!G14=\"\",FALSE(),TRUE())","v":false},{"$f":"IF(Calc!H14=\"\",FALSE(),TRUE())","v":false},null,null,{"$f":"IF(Calc!C5=\"\",FALSE(),TRUE())","v":false},{"$f":"IF(Calc!D5=\"\",FALSE(),TRUE())","v":false},{"$f":"IF(Calc!E5=\"\",FALSE(),TRUE())","v":false},{"$f":"IF(Calc!F5=\"\",FALSE(),TRUE())","v":false},{"$f":"IF(Calc!G5=\"\",FALSE(),TRUE())","v":false},{"$f":"IF(Calc!H5=\"\",FALSE(),TRUE())","v":false}]
[null,null,null,null,null,null,null,null,null,null,null,null,null,null,{"$f":"IF(Calc!C15=\"\",FALSE(),TRUE())","v":false},{"$f":"IF(Calc!D15=\"\",FALSE(),TRUE())","v":false},{"$f":"IF(Calc!E15=\"\",FALSE(),TRUE())","v":false},{"$f":"IF(Calc!F15=\"\",FALSE(),TRUE())","v":false},{"$f":"IF(Calc!G15=\"\",FALSE(),TRUE())","v":false},{"$f":"IF(Calc!H15=\"\",FALSE(),TRUE())","v":false},null,null,{"$f":"IF(Calc!C6=\"\",FALSE(),TRUE())","v":false},{"$f":"IF(Calc!D6=\"\",FALSE(),TRUE())","v":false},{"$f":"IF(Calc!E6=\"\",FALSE(),TRUE())","v":false},{"$f":"IF(Calc!F6=\"\",FALSE(),TRUE())","v":false},{"$f":"IF(Calc!G6=\"\",FALSE(),TRUE())","v":false},{"$f":"IF(Calc!H6=\"\",FALSE(),TRUE())","v":false}]
[null,null,null,null,null,null,null,null,null,null,null,null,null,null,{"$f":"IF(Calc!C16=\"\",FALSE(),TRUE())","v":false},{"$f":"IF(Calc!D16=\"\",FALSE(),TRUE())","v":false},{"$f":"IF(Calc!E16=\"\",FALSE(),TRUE())","v":false},{"$f":"IF(Calc!F16=\"\",FALSE(),TRUE())","v":false},{"$f":"IF(Calc!G16=\"\",FALSE(),TRUE())","v":false},{"$f":"IF(Calc!H16=\"\",FALSE(),TRUE())","v":false},null,null,{"$f":"IF(Calc!C7=\"\",FALSE(),TRUE())","v":false},{"$f":"IF(Calc!D7=\"\",FALSE(),TRUE())","v":false},{"$f":"IF(Calc!E7=\"\",FALSE(),TRUE())","v":false},{"$f":"IF(Calc!F7=\"\",FALSE(),TRUE())","v":false},{"$f":"IF(Calc!G7=\"\",FALSE(),TRUE())","v":false},{"$f":"IF(Calc!H7=\"\",FALSE(),TRUE())","v":false}]
[null,null,null,null,null,null,null,null,null,null,null,null,null,null,{"$f":"IF(Calc!C17=\"\",FALSE(),TRUE())","v":false},{"$f":"IF(Calc!D17=\"\",FALSE(),TRUE())","v":false},{"$f":"IF(Calc!E17=\"\",FALSE(),TRUE())","v":false},{"$f":"IF(Calc!F17=\"\",FALSE(),TRUE())","v":false},{"$f":"IF(Calc!G17=\"\",FALSE(),TRUE())","v":false},{"$f":"IF(Calc!H17=\"\",FALSE(),TRUE())","v":false},null,null,{"$f":"IF(Calc!C8=\"\",FALSE(),TRUE())","v":false},{"$f":"IF(Calc!D8=\"\",FALSE(),TRUE())","v":false},{"$f":"IF(Calc!E8=\"\",FALSE(),TRUE())","v":false},{"$f":"IF(Calc!F8=\"\",FALSE(),TRUE())","v":false},{"$f":"IF(Calc!G8=\"\",FALSE(),TRUE())","v":false},{"$f":"IF(Calc!H8=\"\",FALSE(),TRUE())","v":false}]
[null,null,null,null,null,null,null,null,null,null,null,null,null,null,{"$f":"IF(Calc!C18=\"\",FALSE(),TRUE())","v":false},{"$f":"IF(Calc!D18=\"\",FALSE(),TRUE())","v":false},{"$f":"IF(Calc!E18=\"\",FALSE(),TRUE())","v":false},{"$f":"IF(Calc!F18=\"\",FALSE(),TRUE())","v":false},{"$f":"IF(Calc!G18=\"\",FALSE(),TRUE())","v":false},{"$f":"IF(Calc!H18=\"\",FALSE(),TRUE())","v":false},null,null,{"$f":"IF(Calc!C9=\"\",FALSE(),TRUE())","v":false},{"$f":"IF(Calc!D9=\"\",FALSE(),TRUE())","v":false},{"$f":"IF(Calc!E9=\"\",FALSE(),TRUE())","v":false},{"$f":"IF(Calc!F9=\"\",FALSE(),TRUE())","v":false},{"$f":"IF(Calc!G9=\"\",FALSE(),TRUE())","v":false},{"$f":"IF(Calc!H9=\"\",FALSE(),TRUE())","v":false}]
[null,null,null,null,null,null,null,null,null,null,null,null,null,"Responses ",{"$f":"OR(O25:O26)","v":false},false,false,false,false,false,null,"Responses all",{"$f":"OR(W25:W26)","v":false},false,false,false,false,false]
[null,null,null,null,null,null,null,null,null,null,null,null,null,"Doses AND responses",{"$f":"AND(O24,O31)","v":false},false,false,false,false,false,null,"Dose AND responses",{"$f":"AND(W24,W31)","v":false},false,false,false,false,false]
[null,null,null,null,null,null,null,null,null,null,null,null,null,"Sum Y^2",{"$f":"IF(O32,Calc!C13*Calc!C13+Calc!C14*Calc!C14+Calc!C15*Calc!C15+Calc!C16*Calc!C16+Calc!C17*Calc!C17+Calc!C18*Calc!C18,\"\")","v":""},{"$f":"IF(P32,Calc!D13*Calc!D13+Calc!D14*Calc!D14+Calc!D15*Calc!D15+Calc!D16*Calc!D16+Calc!D17*Calc!D17+Calc!D18*Calc!D18,\"\")","v":""},{"$f":"IF(Q32,Calc!E13*Calc!E13+Calc!E14*Calc!E14+Calc!E15*Calc!E15+Calc!E16*Calc!E16+Calc!E17*Calc!E17+Calc!E18*Calc!E18,\"\")","v":""},{"$f":"IF(R32,Calc!F13*Calc!F13+Calc!F14*Calc!F14+Calc!F15*Calc!F15+Calc!F16*Calc!F16+Calc!F17*Calc!F17+Calc!F18*Calc!F18,\"\")","v":""},{"$f":"IF(S32,Calc!G13*Calc!G13+Calc!G14*Calc!G14+Calc!G15*Calc!G15+Calc!G16*Calc!G16+Calc!G17*Calc!G17+Calc!G18*Calc!G18,\"\")","v":""},{"$f":"IF(T32,Calc!H13*Calc!H13+Calc!H14*Calc!H14+Calc!H15*Calc!H15+Calc!H16*Calc!H16+Calc!H17*Calc!H17+Calc!H18*Calc!H18,\"\")","v":""},null,"Sum Y^2",{"$f":"IF(W32,Calc!C4^2+C5^2+C6^2+Calc!C7^2+Calc!C8^2+Calc!C9^2,\"\")","v":""},{"$f":"IF(X32,Calc!D4^2+D5^2+D6^2+Calc!D7^2+Calc!D8^2+Calc!D9^2,\"\")","v":""},{"$f":"IF(Y32,Calc!E4^2+E5^2+E6^2+Calc!E7^2+Calc!E8^2+Calc!E9^2,\"\")","v":""},{"$f":"IF(Z32,Calc!F4^2+F5^2+F6^2+Calc!F7^2+Calc!F8^2+Calc!F9^2,\"\")","v":""},{"$f":"IF(AA32,Calc!G4^2+G5^2+G6^2+Calc!G7^2+Calc!G8^2+Calc!G9^2,\"\")","v":""},{"$f":"IF(AB32,Calc!H4^2+Calc!H5^2+Calc!H6^2+Calc!H7^2+Calc!H8^2+Calc!H9^2,\"\")","v":""}]
[null,null,null,null,null,null,null,null,null,null,null,null,null,"Average Sum Y^2",{"$f":"IF(O32,SUM(Calc!C13:C18)*SUM(Calc!C13:C18)/COUNT(Calc!C13:C18),\"\")","v":""},{"$f":"IF(P32,SUM(Calc!D13:D18)*SUM(Calc!D13:D18)/COUNT(Calc!D13:D18),\"\")","v":""},{"$f":"IF(Q32,SUM(Calc!E13:E18)*SUM(Calc!E13:E18)/COUNT(Calc!E13:E18),\"\")","v":""},{"$f":"IF(R32,SUM(Calc!F13:F18)*SUM(Calc!F13:F18)/COUNT(Calc!F13:F18),\"\")","v":""},{"$f":"IF(S32,SUM(Calc!G13:G18)*SUM(Calc!G13:G18)/COUNT(Calc!G13:G18),\"\")","v":""},{"$f":"IF(T32,SUM(Calc!H13:H18)*SUM(Calc!H13:H18)/COUNT(Calc!H13:H18),\"\")","v":""},null,"Average Sum Y^2",{"$f":"IF(W32,SUM(Calc!C4:C9)^2/COUNT(Calc!C4:C9),\"\")","v":""},{"$f":"IF(X32,SUM(Calc!D4:D9)^2/COUNT(Calc!D4:D9),\"\")","v":""},{"$f":"IF(Y32,SUM(Calc!E4:E9)^2/COUNT(Calc!E4:E9),\"\")","v":""},{"$f":"IF(Z32,SUM(Calc!F4:F9)^2/COUNT(Calc!F4:F9),\"\")","v":""},{"$f":"IF(AA32,SUM(Calc!G4:G9)^2/COUNT(Calc!G4:G9),\"\")","v":""},{"$f":"IF(AB32,SUM(Calc!H4:H9)^2/COUNT(Calc!H4:H9),\"\")","v":""}]
[]
[null,null,null,null,null,null,null,null,null,null,null,null,null,"Number of doses test","XTa",{"$f":"IF(O32,COUNT(Calc!C12),)+IF(P32,COUNT(Calc!D12),)+IF(Q32,COUNT(Calc!E12),)+IF(R32,COUNT(Calc!F12),)+IF(S32,COUNT(Calc!G12),)+IF(T32,COUNT(Calc!H12),)","v":0},null,null,null,null,null,"Number of doses standard",null,null,null,null,"XS",{"$f":"IF(W32,COUNT(Calc!C3),)+IF(X32,COUNT(Calc!D3),)+IF(Y32,COUNT(Calc!E3),)+IF(Z32,COUNT(Calc!F3),)+IF(AA32,COUNT(Calc!G3),)+IF(AB32,COUNT(Calc!H3),)","v":0}]
[null,null,null,null,null,null,null,null,null,null,null,null,null,"Number responses test","NTa",{"$f":"IF(O32,COUNT(Calc!C13:C18),)+IF(P32,COUNT(Calc!D13:D18),)+IF(Q32,COUNT(Calc!E13:E18),)+IF(R32,COUNT(Calc!F13:F18),)+IF(S32,COUNT(Calc!G13:G18),)+IF(T32,COUNT(Calc!H13:H18),)","v":0},null,null,null,null,null,"Number responses standard",null,null,null,null,"NS",{"$f":"IF(W32,COUNT(Calc!C4:C9),)+IF(X32,COUNT(Calc!D4:D9),)+IF(Y32,COUNT(Calc!E4:E9),)+IF(Z32,COUNT(Calc!F4:F9),)+IF(AA32,COUNT(Calc!G4:G9),)+IF(AB32,COUNT(Calc!H4:H9),)","v":0}]
[null,null,null,null,null,null,null,null,null,null,null,null,null,"Number total responses","Ntota",{"$f":"NS+NTa+NB","v":0},null,"NS","Nta","NB",null,"Sum doses standard",null,null,null,null,"SumXS",{"$f":"COUNT(Calc!C4:C9)*Calc!C3+COUNT(Calc!D4:D9)*Calc!D3+COUNT(Calc!E4:E9)*Calc!E3+COUNT(Calc!F4:F9)*Calc!F3+COUNT(Calc!G4:G9)*Calc!G3+COUNT(Calc!H4:H9)*Calc!H3","v":0}]
[null,null,null,null,null,null,null,null,null,null,null,null,null,"Sum doses test","SumXTa",{"$f":"COUNT(Calc!C13:C18)*Calc!C12+COUNT(Calc!D13:D18)*Calc!D12+COUNT(Calc!E13:E18)*Calc!E12+COUNT(Calc!F13:F18)*Calc!F12+COUNT(Calc!G13:G18)*Calc!G12+COUNT(Calc!H13:H18)*Calc!H12","v":0},null,{"$f":"NS","v":0},{"$f":"NTa","v":0},{"$f":"NB","v":0},null,"Sum reponses standard",null,null,null,null,"SumYS",{"$f":"IF(W32,SUM(Calc!C4:C9),)+IF(X32,SUM(Calc!D4:D9),)+IF(Y32,SUM(Calc!E4:E9),)+IF(Z32,SUM(Calc!F4:F9),)+IF(AA32,SUM(Calc!G4:G9),)+IF(AB32,SUM(Calc!H4:H9),)","v":0}]
[null,null,null,null,null,null,null,null,null,null,null,null,null,"Sum responses test","SumYTa",{"$f":"IF(O32,SUM(Calc!C13:C18),)+IF(P32,SUM(Calc!D13:D18),)+IF(Q32,SUM(Calc!E13:E18),)+IF(R32,SUM(Calc!F13:F18),)+IF(S32,SUM(Calc!G13:G18),)+IF(T32,SUM(Calc!H13:H18))","v":0},null,null,null,null,null,"Average doses standard ",null,null,null,null,null,{"$f":"SumXS/NS","v":{"$error":"#DIV/0!"}}]
[null,null,null,null,null,null,null,null,null,null,null,null,null,"Sum reponses","SumYtota",{"$f":"SumYTa+SumYS+SumYB","v":0},null,null,null,null,null,"Average responses standard ",null,null,null,null,null,{"$f":"SumYS/NS","v":{"$error":"#DIV/0!"}}]
[null,null,null,null,null,null,null,null,null,null,null,null,null,"Sum of squares test","SumXTaXTa",{"$f":"COUNT(Calc!C13:C18)*Calc!C12*Calc!C12+COUNT(Calc!D13:D18)*Calc!D12*Calc!D12+COUNT(Calc!E13:E18)*Calc!E12*Calc!E12+COUNT(Calc!F13:F18)*Calc!F12*Calc!F12+COUNT(Calc!G13:G18)*Calc!G12*Calc!G12+COUNT(Calc!H13:H18)*Calc!H12*Calc!H12-P39*P39/P38","v":{"$error":"#DIV/0!"}}]
[null,null,null,null,null,null,null,null,null,null,null,null,null,"Sum of squares standard and test","SumXSXTa",{"$f":"-SumXS*SumXTa/Ntota","v":{"$error":"#DIV/0!"}}]
[null,null,null,null,null,null,null,null,null,null,null,null,null,"Sum of squares test and blank","SumXTaXB",{"$f":"-SumXTa*SumXB/Ntota","v":{"$error":"#DIV/0!"}}]
[null,null,null,null,null,null,null,null,null,null,null,null,null,"Sum of squares blank","SumXBXB",{"$f":"COUNT(Calc!$L$4:$L$9)*$X$46*$X$46-SumXB*SumXB/P38","v":{"$error":"#DIV/0!"}},null,null,null,null,null,"blanks"]
[null,null,null,null,null,null,null,null,null,null,null,null,null,"Sum of squares standard and blank","SumXSXB",{"$f":"-SumXS*SumXB/Ntota","v":{"$error":"#DIV/0!"}},null,null,null,null,null,"Doses blanks",null,1]
[null,null,null,null,null,null,null,null,null,null,null,null,null,"Sum of squares standard","SumXSXS",{"$f":"(COUNT(Calc!$C$4:$C$9)*Calc!$C$3*Calc!$C$3+COUNT(Calc!$D$4:$D$9)*Calc!$D$3*Calc!$D$3+COUNT(Calc!$E$4:$E$9)*Calc!$E$3*Calc!$E$3+COUNT(Calc!$F$4:$F$9)*Calc!$F$3*Calc!$F$3+COUNT(Calc!$G$4:$G$9)*Calc!$G$3*Calc!$G$3+COUNT(Calc!$H$4:$H$9)*Calc!$H$3*Calc!$H$3)-SumXS*SumXS/P38","v":{"$error":"#DIV/0!"}},null,null,null,null,null,"Doses ",null,{"$f":"IF(X46,TRUE(),FALSE())","v":true}]
[null,null,null,null,null,null,null,null,null,null,null,null,null,"Product of deviation test","SumXTaY",{"$f":"SUM(Calc!C13:C18)*Calc!C12+SUM(Calc!D13:D18)*Calc!D12+SUM(Calc!E13:E18)*Calc!E12+SUM(Calc!F13:F18)*Calc!F12+SUM(Calc!G13:G18)*Calc!G12+SUM(Calc!H13:H18)*Calc!H12-SumXTa*SumYtota/Ntota","v":{"$error":"#DIV/0!"}},null,null,null,null,null,"Responses ",null,{"$f":"IF(Calc!L4=\"\",FALSE(),TRUE())","v":false}]
[null,null,null,null,null,null,null,null,null,null,null,null,null,"Product of deviation standard","SumXSY",{"$f":"SUM(Calc!$C$4:$C$9)*Calc!$C$3+SUM(Calc!$D$4:$D$9)*Calc!$D$3+SUM(Calc!$E$4:$E$9)*Calc!$E$3+SUM(Calc!$F$4:$F$9)*Calc!$F$3+SUM(Calc!$G$4:$G$9)*Calc!$G$3+SUM(Calc!$H$4:$H$9)*Calc!$H$3-SumXS*SumYtota/Ntota","v":{"$error":"#DIV/0!"}},null,null,null,null,null,null,null,{"$f":"IF(Calc!L5=\"\",FALSE(),TRUE())","v":false}]
[null,null,null,null,null,null,null,null,null,null,null,null,null,"Product of deviation blank","SumXBY",{"$f":"SUM(Calc!$L$4:$L$9)*X46-SumXB*SumYtota/Ntota","v":{"$error":"#DIV/0!"}},null,null,null,null,null,null,null,{"$f":"IF(Calc!L6=\"\",FALSE(),TRUE())","v":false}]
[null,null,null,null,null,null,null,null,null,null,null,null,null,"Slope standard","SlopeSa",{"$f":"O69*P49+O70*P48+O71*P50","v":{"$error":"#DIV/0!"}},null,null,null,null,null,null,null,{"$f":"IF(Calc!L7=\"\",FALSE(),TRUE())","v":false}]
[null,null,null,null,null,null,null,null,null,null,null,null,null,"Slope test","SlopeTa",{"$f":"P69*P49+P70*P48+P71*P50","v":{"$error":"#DIV/0!"}},null,null,null,null,null,null,null,{"$f":"IF(Calc!L8=\"\",FALSE(),TRUE())","v":false}]
[null,null,null,null,null,null,null,null,null,null,null,null,null,"Slope blank","SlopeBa",{"$f":"Q69*P49+Q70*P48+Q71*P50","v":{"$error":"#DIV/0!"}},null,null,null,null,null,null,null,{"$f":"IF(Calc!L9=\"\",FALSE(),TRUE())","v":false}]
[null,null,null,null,null,null,null,null,null,null,null,null,null,"Intercept",null,{"$f":"($AB$41-P51*$AB$40+P58-P52*P57+$X$70-P53*$X$69)/3","v":{"$error":"#DIV/0!"}}]
[null,null,null,null,null,null,null,null,null,null,null,null,null,"Slope standard (without blank)","SlopeSa(-Bl)",{"$f":"R69*SumXSY+R70*SumXTaY","v":{"$error":"#DIV/0!"}}]
[null,null,null,null,null,null,null,null,null,null,null,null,null,"Slope test (without blank)","SlopeTa(-Bl)",{"$f":"S69*SumXSY+S70*SumXTaY","v":{"$error":"#DIV/0!"}}]
[null,null,null,null,null,null,null,null,null,null,null,null,null,"Average doses test",null,{"$f":"SumXTa/NTa","v":{"$error":"#DIV/0!"}}]
[null,null,null,null,null,null,null,null,null,null,null,null,null,"Average responses test",null,{"$f":"SumYTa/NTa","v":{"$error":"#DIV/0!"}}]
[null,null,null,null,null,null,null,null,null,null,null,null,null,"Ratio test/standard","R",{"$f":"SlopeTa/SlopeS","v":{"$error":"#DIV/0!"}}]
[null,null,null,null,null,null,null,null,null,null,null,null,null,null,"R upper",{"$f":"(P59-P63*P69/O69+P62*SQRT(R81)/ABS(SlopeS)*(P70-2*P59*P69+P59*P59*O69-P63*(P70-P69*P69/O69))^0.5)/(1-P63)","v":{"$error":"#DIV/0!"}},null,null,null,null,null,"Responses",null,{"$f":"OR(X48:X59)","v":false}]
[null,null,null,null,null,null,null,null,null,null,null,null,null,null,"R lower",{"$f":"(P59-P63*P69/O69-P62*SQRT(R81)/ABS(SlopeS)*(P70-2*P59*P69+P59*P59*O69-P63*(P70-P69*P69/O69))^0.5)/(1-P63)","v":{"$error":"#DIV/0!"}},null,null,null,null,null,"Doses AND responses",null,{"$f":"AND(X47,X60)","v":false}]
[null,null,null,null,null,null,null,null,null,null,null,null,null,null,"t",{"$f":"TINV(0.05,O81)","v":{"$error":"#NUM!"}},null,null,null,null,null,"Sum Y^2",null,{"$f":"IF(X61,Calc!L4^2+L5^2+L6^2+Calc!L7^2+Calc!L8^2+Calc!L9^2+Calc!L10^2+Calc!L11^2+Calc!L12^2+Calc!L15^2+Calc!L16^2+Calc!L17^2+Calc!L18^2+Calc!L19^2,\"\")","v":""}]
[null,null,null,null,null,null,null,null,null,null,null,null,null,null,"g",{"$f":"P62*P62*R81*O69/(P51*P51)","v":{"$error":"#NUM!"}},null,null,null,null,null,"Average Sum Y^2",null,{"$f":"IF(X61,SUM(Calc!L4:L9)^2/COUNT(Calc!L4:L9),\"\")","v":""}]
[]
[null,null,null,null,null,null,null,null,null,null,null,null,null,null,"3 x 3",null,null,"2 x 2",null,null,null,"Number of doses blank","XB",1]
[null,null,null,null,null,null,null,null,null,null,null,null,null,"Matrix",{"$f":"P47","v":{"$error":"#DIV/0!"}},{"$f":"SumXSXTa","v":{"$error":"#DIV/0!"}},{"$f":"P46","v":{"$error":"#DIV/0!"}},{"$f":"O66","v":{"$error":"#DIV/0!"}},{"$f":"P66","v":{"$error":"#DIV/0!"}},null,null,"Number responses blank","NB",{"$f":"IF(X61,COUNT(Calc!L4:L19),)","v":0}]
[null,null,null,null,null,null,null,null,null,null,null,null,null,null,{"$f":"SumXSXTa","v":{"$error":"#DIV/0!"}},{"$f":"SumXTaXTa","v":{"$error":"#DIV/0!"}},{"$f":"SumXTaXB","v":{"$error":"#DIV/0!"}},{"$f":"O67","v":{"$error":"#DIV/0!"}},{"$f":"P67","v":{"$error":"#DIV/0!"}},null,null,"Sum responses blank","SumYB",{"$f":"IF(X61,SUM(Calc!L4:L9),)","v":0}]
[null,null,null,null,null,null,null,null,null,null,null,null,null,null,{"$f":"SumXSXB","v":{"$error":"#DIV/0!"}},{"$f":"SumXTaXB","v":{"$error":"#DIV/0!"}},{"$f":"SumXBXB","v":{"$error":"#DIV/0!"}},null,null,null,null,"Sum doses blank","SumXB",{"$f":"COUNT(Calc!L4:L9)*X46","v":0}]
[null,null,null,null,null,null,null,null,null,null,null,null,null,"Inverse matrix",{"$f":"(P67*Q68-Q67*P68)/MDETERM(O66:Q68)","v":{"$error":"#DIV/0!"}},{"$f":"-(O67*Q68-Q67*O68)/MDETERM(O66:Q68)","v":{"$error":"#DIV/0!"}},{"$f":"(O67*P68-P67*O68)/MDETERM(O66:Q68)","v":{"$error":"#DIV/0!"}},{"$f":"S67/(R66*S67-S66*R67)","v":{"$error":"#DIV/0!"}},{"$f":"S66/(S66*R67-R66*S67)","v":{"$error":"#DIV/0!"}},null,null,"Average doses blank",null,{"$f":"SumXB/NB","v":{"$error":"#DIV/0!"}}]
[null,null,null,null,null,null,null,null,null,null,null,null,null,null,{"$f":"-(P66*Q68-P68*Q66)/MDETERM(O66:Q68)","v":{"$error":"#DIV/0!"}},{"$f":"(O66*Q68-O68*Q66)/MDETERM(O66:Q68)","v":{"$error":"#DIV/0!"}},{"$f":"-(O66*P68-P66*O68)/MDETERM(O66:Q68)","v":{"$error":"#DIV/0!"}},{"$f":"R67/(S66*R67-R66*S67)","v":{"$error":"#DIV/0!"}},{"$f":"R66/(R66*S67-S66*R67)","v":{"$error":"#DIV/0!"}},null,null,"Average responses blank",null,{"$f":"SumYB/NB","v":{"$error":"#DIV/0!"}}]
[null,null,null,null,null,null,null,null,null,null,null,null,null,null,{"$f":"(P66*Q67-P67*Q66)/MDETERM(O66:Q68)","v":{"$error":"#DIV/0!"}},{"$f":"-(O66*Q67-O67*Q66)/MDETERM(O66:Q68)","v":{"$error":"#DIV/0!"}},{"$f":"(O66*P67-P66*O67)/MDETERM(O66:Q68)","v":{"$error":"#DIV/0!"}}]
[]
[null,null,null,null,null,null,null,null,null,null,null,null,null,"ANALYSIS OF VARIANCE"]
[null,null,null,null,null,null,null,null,null,null,null,null,null,"Adjustment for mean ","d.f.",{"$f":"(SumYtota)^2/Ntota","v":{"$error":"#DIV/0!"}},null,"Mean "]
[null,null,null,null,null,null,null,null,null,null,null,null,null,"Nature of variation",null,"Sum of squares",null,"square","F95%","Norm"]
[null,null,null,null,null,null,null,null,null,null,null,null,null,"Regression",2,{"$f":"P55*P49+P56*P48","v":{"$error":"#DIV/0!"}}]
[null,null,null,null,null,null,null,null,null,null,null,null,null,"Blanks",{"$f":"NB-1","v":-1},{"$f":"(P49*P51+P48*P52+P50*P53)-P76","v":{"$error":"#DIV/0!"}},{"$f":"SumXSY*SlopeS+SumXTaY*SlopeTa+SumXBY*SlopeB","v":{"$error":"#DIV/0!"}},{"$f":"IF(O77=0,0,P77/O77)","v":{"$error":"#DIV/0!"}},{"$f":"IF(R81=0,0,R77/R81)","v":{"$error":"#DIV/0!"}},{"$f":"IF(O77=0,\"d.f. = 0\",FINV(0.05,O77,O81))","v":{"$error":"#NUM!"}}]
[null,null,null,null,null,null,null,null,null,null,null,null,null,"Intersection",1,{"$f":"(SUM(O33:T33)-SUM(O34:T34)+SUM($W$33:$AB$33)-SUM($W$34:$AB$34)+SUM($X$62:$X$62)-SUM($X$63:$X$63))/(Xs+P36+$X$65-2)","v":0},null,{"$f":"P78/O78","v":0},{"$f":"IF(R81=0,0,R78/R81)","v":{"$error":"#DIV/0!"}},{"$f":"FINV(0.05,O78,O81)","v":{"$error":"#NUM!"}}]
[null,null,null,null,null,null,null,null,null,null,null,null,null,"Curvature",{"$f":"Xs-1","v":-1},{"$f":"P80-P78-P77-P76","v":{"$error":"#DIV/0!"}},null,{"$f":"P79/O79","v":{"$error":"#DIV/0!"}},{"$f":"IF(R81=0,0,R79/R81)","v":{"$error":"#DIV/0!"}},{"$f":"FINV(0.05,O79,O81)","v":{"$error":"#NUM!"}}]
[null,null,null,null,null,null,null,null,null,null,null,null,null,"Between doses",{"$f":"SUM(O76:O79)","v":1},{"$f":"SUM(O34:T34)+SUM($X$63:$X$63)+SUM($W$34:$AB$34)-P74","v":{"$error":"#DIV/0!"}}]
[null,null,null,null,null,null,null,null,null,null,null,null,null,"Error",{"$f":"O82-O80","v":-2},{"$f":"P82-P80","v":{"$error":"#DIV/0!"}},null,{"$f":"P81/O81","v":{"$error":"#DIV/0!"}}]
[null,null,null,null,null,null,null,null,null,null,null,null,null,"Total",{"$f":"Ntota-1","v":-1},{"$f":"(SUM($W$33:$AB$33)+SUM($X$62:$X$62)+SUM(O33:T33))-(P41^2)/P38","v":{"$error":"#DIV/0!"}}]
[]
[null,null,null,null,null,null,null,null,null,null,null,null,null,"Graph","Dose","y1","y2","y3","y4","y5","y6",null,"y(calc)"]
[null,null,null,null,null,null,null,null,null,null,null,null,null,"Standard",0,null,null,null,null,null,null,null,{"$f":"O85*SlopeS+P54","v":{"$error":"#DIV/0!"}}]
[null,null,null,null,null,null,null,null,null,null,null,null,null,null,{"$f":"IF($W$32,Calc!$C$3,NA())","v":{"$error":"#N/A"}},{"$f":"IF(AND($W$32,$W$25),Calc!$C$4,NA())","v":{"$error":"#N/A"}},{"$f":"IF(AND($W$32,$W$26),Calc!$C$5,NA())","v":{"$error":"#N/A"}},{"$f":"IF(AND($W$32,$W$27),Calc!$C$6,NA())","v":{"$error":"#N/A"}},{"$f":"IF(AND($W$32,$W$28),Calc!$C$7,NA())","v":{"$error":"#N/A"}},{"$f":"IF(AND($W$32,$W$29),Calc!$C$8,NA())","v":{"$error":"#N/A"}},{"$f":"IF(AND($W$32,$W$30),Calc!$C$9,NA())","v":{"$error":"#N/A"}},null,{"$f":"O86*SlopeS+P54","v":{"$error":"#N/A"}}]
[null,null,null,null,null,null,null,null,null,null,null,null,null,null,{"$f":"IF($X$32,Calc!$D$3,NA())","v":{"$error":"#N/A"}},{"$f":"IF(AND($X$32,$X$25),Calc!$D$4,NA())","v":{"$error":"#N/A"}},{"$f":"IF(AND($X$32,$X$26),Calc!$D$5,NA())","v":{"$error":"#N/A"}},{"$f":"IF(AND($X$32,$X$27),Calc!$D$6,NA())","v":{"$error":"#N/A"}},{"$f":"IF(AND($X$32,$X$28),Calc!$D$7,NA())","v":{"$error":"#N/A"}},{"$f":"IF(AND($X$32,$X$29),Calc!$D$8,NA())","v":{"$error":"#N/A"}},{"$f":"IF(AND($X$32,$X$30),Calc!$D$9,NA())","v":{"$error":"#N/A"}},null,{"$f":"O87*SlopeS+P54","v":{"$error":"#N/A"}}]
[null,null,null,null,null,null,null,null,null,null,null,null,null,null,{"$f":"IF($Y$32,Calc!$E$3,NA())","v":{"$error":"#N/A"}},{"$f":"IF(AND($Y$32,$Y$25),Calc!$E$4,NA())","v":{"$error":"#N/A"}},{"$f":"IF(AND($Y$32,$Y$26),Calc!$E$5,NA())","v":{"$error":"#N/A"}},{"$f":"IF(AND($Y$32,$Y$27),Calc!$E$6,NA())","v":{"$error":"#N/A"}},{"$f":"IF(AND($Y$32,$Y$28),Calc!$E$7,NA())","v":{"$error":"#N/A"}},{"$f":"IF(AND($Y$32,$Y$29),Calc!$E$8,NA())","v":{"$error":"#N/A"}},{"$f":"IF(AND($Y$32,$Y$30),Calc!$E$9,NA())","v":{"$error":"#N/A"}},null,{"$f":"O88*SlopeS+P54","v":{"$error":"#N/A"}}]
[null,null,null,null,null,null,null,null,null,null,null,null,null,null,{"$f":"IF($Z$32,Calc!$F$3,NA())","v":{"$error":"#N/A"}},{"$f":"IF(AND($Z$32,$Z$25),Calc!$F$4,NA())","v":{"$error":"#N/A"}},{"$f":"IF(AND($Z$32,$Z$26),Calc!$F$5,NA())","v":{"$error":"#N/A"}},{"$f":"IF(AND($Z$32,$Z$27),Calc!$F$6,NA())","v":{"$error":"#N/A"}},{"$f":"IF(AND($Z$32,$Z$28),Calc!$F$7,NA())","v":{"$error":"#N/A"}},{"$f":"IF(AND($Z$32,$Z$29),Calc!$F$8,NA())","v":{"$error":"#N/A"}},{"$f":"IF(AND($Z$32,$Z$30),Calc!$F$9,NA())","v":{"$error":"#N/A"}},null,{"$f":"O89*SlopeS+P54","v":{"$error":"#N/A"}}]
[null,null,null,null,null,null,null,null,null,null,null,null,null,null,{"$f":"IF($AA$32,Calc!$G$3,NA())","v":{"$error":"#N/A"}},{"$f":"IF(AND($AA$32,$AA$25),Calc!$G$4,NA())","v":{"$error":"#N/A"}},{"$f":"IF(AND($AA$32,$AA$26),Calc!$G$5,NA())","v":{"$error":"#N/A"}},{"$f":"IF(AND($AA$32,$AA$27),Calc!$G$6,NA())","v":{"$error":"#N/A"}},{"$f":"IF(AND($AA$32,$AA$28),Calc!$G$7,NA())","v":{"$error":"#N/A"}},{"$f":"IF(AND($AA$32,$AA$29),Calc!$G$8,NA())","v":{"$error":"#N/A"}},{"$f":"IF(AND($AA$32,$AA$30),Calc!$G$9,NA())","v":{"$error":"#N/A"}},null,{"$f":"O90*SlopeS+P54","v":{"$error":"#N/A"}}]
[null,null,null,null,null,null,null,null,null,null,null,null,null,null,{"$f":"IF($AB$32,Calc!$H$3,NA())","v":{"$error":"#N/A"}},{"$f":"IF(AND($AB$32,$AB$25),Calc!$H$4,NA())","v":{"$error":"#N/A"}},{"$f":"IF(AND($AB$32,$AB$26),Calc!$H$5,NA())","v":{"$error":"#N/A"}},{"$f":"IF(AND($AB$32,$AB$27),Calc!$H$6,NA())","v":{"$error":"#N/A"}},{"$f":"IF(AND($AB$32,$AB$28),Calc!$H$7,NA())","v":{"$error":"#N/A"}},{"$f":"IF(AND($AB$32,$AB$29),Calc!$H$8,NA())","v":{"$error":"#N/A"}},{"$f":"IF(AND($AB$32,$AB$30),Calc!$H$9,NA())","v":{"$error":"#N/A"}},null,{"$f":"O91*SlopeS+P54","v":{"$error":"#N/A"}}]
[null,null,null,null,null,null,null,null,null,null,null,null,null,"Blanks",0,{"$f":"IF(AND($X$61,$X$48),Calc!$L$4,NA())","v":{"$error":"#N/A"}},{"$f":"IF(AND($X$61,$X$49),Calc!$L$5,NA())","v":{"$error":"#N/A"}},{"$f":"IF(AND($X$61,$X$50),Calc!$L$6,NA())","v":{"$error":"#N/A"}},{"$f":"IF(AND($X$61,$X$51),Calc!$L$7,NA())","v":{"$error":"#N/A"}},{"$f":"IF(AND($X$61,$X$52),Calc!$L$8,NA())","v":{"$error":"#N/A"}},{"$f":"IF(AND($X$61,$X$53),Calc!$L$9,NA())","v":{"$error":"#N/A"}}]
[null,null,null,null,null,null,null,null,null,null,null,null,null,null,0]
[null,null,null,null,null,null,null,null,null,null,null,null,null,"Test",0,null,null,null,null,null,null,null,{"$f":"O94*SlopeTa+$P$54","v":{"$error":"#DIV/0!"}}]
[null,null,null,null,null,null,null,null,null,null,null,null,null,null,{"$f":"IF(O32,Calc!C12,NA())","v":{"$error":"#N/A"}},{"$f":"IF(AND($O$32,O25),Calc!C13,NA())","v":{"$error":"#N/A"}},{"$f":"IF(AND($O$32,O26),Calc!C14,NA())","v":{"$error":"#N/A"}},{"$f":"IF(AND($O$32,O27),Calc!C15,NA())","v":{"$error":"#N/A"}},{"$f":"IF(AND($O$32,O28),Calc!C16,NA())","v":{"$error":"#N/A"}},{"$f":"IF(AND(O32,O29),Calc!C17,NA())","v":{"$error":"#N/A"}},{"$f":"IF(AND(O32,O30),Calc!C18,NA())","v":{"$error":"#N/A"}},null,{"$error":"#N/A"}]
[null,null,null,null,null,null,null,null,null,null,null,null,null,null,{"$f":"IF(P32,Calc!D12,NA())","v":{"$error":"#N/A"}},{"$f":"IF(AND($P$32,P25),Calc!D13,NA())","v":{"$error":"#N/A"}},{"$f":"IF(AND($P$32,P26),Calc!D14,NA())","v":{"$error":"#N/A"}},{"$f":"IF(AND($P$32,P27),Calc!D15,NA())","v":{"$error":"#N/A"}},{"$f":"IF(AND($P$32,P28),Calc!D16,NA())","v":{"$error":"#N/A"}},{"$f":"IF(AND($Q$32,P29),Calc!D17,NA())","v":{"$error":"#N/A"}},{"$f":"IF(AND($O$32,P30),Calc!D18,NA())","v":{"$error":"#N/A"}},null,{"$error":"#N/A"}]
[null,null,null,null,null,null,null,null,null,null,null,null,null,null,{"$f":"IF(Q32,Calc!E12,NA())","v":{"$error":"#N/A"}},{"$f":"IF(AND($Q$32,Q25),Calc!E13,NA())","v":{"$error":"#N/A"}},{"$f":"IF(AND($Q$32,Q26),Calc!E14,NA())","v":{"$error":"#N/A"}},{"$f":"IF(AND($Q$32,Q27),Calc!E15,NA())","v":{"$error":"#N/A"}},{"$f":"IF(AND($Q$32,Q28),Calc!E16,NA())","v":{"$error":"#N/A"}},{"$f":"IF(AND($Q$32,Q29),Calc!E17,NA())","v":{"$error":"#N/A"}},{"$f":"IF(AND($Q$32,Q30),Calc!E18,NA())","v":{"$error":"#N/A"}},null,{"$error":"#N/A"}]
[null,null,null,null,null,null,null,null,null,null,null,null,null,null,{"$f":"IF(R32,Calc!F12,NA())","v":{"$error":"#N/A"}},{"$f":"IF(AND($R$32,R25),Calc!F13,NA())","v":{"$error":"#N/A"}},{"$f":"IF(AND($R$32,R26),Calc!F14,NA())","v":{"$error":"#N/A"}},{"$f":"IF(AND($R$32,R27),Calc!F15,NA())","v":{"$error":"#N/A"}},{"$f":"IF(AND($R$32,R28),Calc!F16,NA())","v":{"$error":"#N/A"}},{"$f":"IF(AND($R$32,R29),Calc!F17,NA())","v":{"$error":"#N/A"}},{"$f":"IF(AND($R$32,R30),Calc!F18,NA())","v":{"$error":"#N/A"}},null,{"$error":"#N/A"}]
[null,null,null,null,null,null,null,null,null,null,null,null,null,null,{"$f":"IF(S32,Calc!G12,NA())","v":{"$error":"#N/A"}},{"$f":"IF(AND($S$32,S25),Calc!G13,NA())","v":{"$error":"#N/A"}},{"$f":"IF(AND($S$32,S26),Calc!G14,NA())","v":{"$error":"#N/A"}},{"$f":"IF(AND($S$32,S27),Calc!G15,NA())","v":{"$error":"#N/A"}},{"$f":"IF(AND($S$32,S30),Calc!G16,NA())","v":{"$error":"#N/A"}},{"$f":"IF(AND($S$32,S29),Calc!G17,NA())","v":{"$error":"#N/A"}},{"$f":"IF(AND($S$32,S30),Calc!G18,NA())","v":{"$error":"#N/A"}},null,{"$error":"#N/A"}]
[null,null,null,null,null,null,null,null,null,null,null,null,null,null,{"$f":"IF(T32,Calc!H12,NA())","v":{"$error":"#N/A"}},{"$f":"IF(AND($T$32,T25),Calc!H13,NA())","v":{"$error":"#N/A"}},{"$f":"IF(AND($T$32,T26),Calc!H14,NA())","v":{"$error":"#N/A"}},{"$f":"IF(AND($T$32,T27),Calc!H15,NA())","v":{"$error":"#N/A"}},{"$f":"IF(AND($T$32,T28),Calc!H16,NA())","v":{"$error":"#N/A"}},{"$f":"IF(AND($T$32,T29),Calc!H17,NA())","v":{"$error":"#N/A"}},{"$f":"IF(AND($T$32,T30),Calc!H18,NA())","v":{"$error":"#N/A"}},null,{"$error":"#N/A"}]